[Event "*** Titled Tuesday Blitz"]
[Site "Chess.com"]
[Date "2020.05.19"]
[Round "2"]
[White "Nikolaj_6"]
[Black "wonderfultime"]
[Result "0-1"]
[WhiteElo "2574"]
[BlackElo "3007"]
[TimeControl "180+1"]
[EndTime "12:19:15 PDT"]
[Termination "wonderfultime won by resignation"]

1. e4 {[%clk 0:03:00.9]} 1... c5 {[%clk 0:02:55.7]} 2. Nf3 {[%clk 0:03:00.4]}
2... Nf6 {[%clk 0:02:56.1]} 3. e5 {[%clk 0:02:56.7]} 3... Nd5 {[%clk 0:02:56.4]}
4. g3 {[%clk 0:02:57]} 4... Nc6 {[%clk 0:02:55.4]} 5. Bg2 {[%clk 0:02:56.9]}
5... g6 {[%clk 0:02:55.8]} 6. O-O {[%clk 0:02:53.4]} 6... Bg7 {[%clk 0:02:56]}
7. Re1 {[%clk 0:02:53.4]} 7... O-O {[%clk 0:02:55.3]} 8. Nc3 {[%clk 0:02:53.2]}
8... Nc7 {[%clk 0:02:34.9]} 9. d3 {[%clk 0:02:48.1]} 9... Ne6 {[%clk 0:02:23.2]}
10. Nd5 {[%clk 0:02:41.4]} 10... b6 {[%clk 0:02:16.8]} 11. c3 {[%clk 0:02:35.2]}
11... Bb7 {[%clk 0:02:15.9]} 12. Nf4 {[%clk 0:02:32.8]} 12... Qc7 {[%clk
0:02:09.6]} 13. d4 {[%clk 0:02:29.7]} 13... cxd4 {[%clk 0:02:05.2]} 14. cxd4
{[%clk 0:02:25.8]} 14... Nb4 {[%clk 0:01:56.2]} 15. d5 {[%clk 0:01:56.6]} 15...
Nxf4 {[%clk 0:01:23.2]} 16. d6 {[%clk 0:01:55.9]} 16... exd6 {[%clk 0:01:19.7]}
17. exd6 {[%clk 0:01:55.5]} 17... Qc2 {[%clk 0:00:47.4]} 18. Bxf4 {[%clk
0:01:50.4]} 18... Rfe8 {[%clk 0:00:47.2]} 19. Rxe8+ {[%clk 0:01:36.9]} 19...
Rxe8 {[%clk 0:00:48.1]} 20. Qxc2 {[%clk 0:01:36.7]} 20... Nxc2 {[%clk 0:00:48]}
21. Rc1 {[%clk 0:01:33.3]} 21... Bxf3 {[%clk 0:00:45]} 22. Bxf3 {[%clk
0:01:25.7]} 22... Nd4 {[%clk 0:00:45.5]} 23. Kg2 {[%clk 0:01:13.9]} 23... Ne6
{[%clk 0:00:43.9]} 24. Be3 {[%clk 0:00:51]} 24... Bxb2 {[%clk 0:00:42.5]} 25.
Rd1 {[%clk 0:00:39.3]} 25... Ba3 {[%clk 0:00:41]} 26. Bb7 {[%clk 0:00:37.4]}
26... Bc5 {[%clk 0:00:38.3]} 27. Bh6 {[%clk 0:00:23.5]} 27... Ng7 {[%clk
0:00:22.4]} 28. Bxg7 {[%clk 0:00:20.6]} 28... Kxg7 {[%clk 0:00:23.3]} 29. Ba6
{[%clk 0:00:20.6]} 29... Re6 {[%clk 0:00:19.3]} 30. Bb5 {[%clk 0:00:20.2]} 30...
Rf6 {[%clk 0:00:19.1]} 31. Rd2 {[%clk 0:00:19.6]} 31... Bb4 {[%clk 0:00:18.4]}
32. Rd3 {[%clk 0:00:17.6]} 32... Bxd6 {[%clk 0:00:15.4]} 33. Bxd7 {[%clk
0:00:17]} 33... Bc5 {[%clk 0:00:15.8]} 34. f4 {[%clk 0:00:17]} 34... g5 {[%clk
0:00:12.8]} 35. f5 {[%clk 0:00:16.3]} 35... h5 {[%clk 0:00:12.9]} 36. Kf3 {[%clk
0:00:15.8]} 36... a6 {[%clk 0:00:11.5]} 37. g4 {[%clk 0:00:16]} 37... hxg4+
{[%clk 0:00:11.1]} 38. Kxg4 {[%clk 0:00:15.8]} 38... Rh6 {[%clk 0:00:11.5]} 39.
Kxg5 {[%clk 0:00:14.3]} 39... f6+ {[%clk 0:00:11.9]} 40. Kg4 {[%clk 0:00:14.3]}
40... Rxh2 {[%clk 0:00:12.4]} 41. Be6 {[%clk 0:00:14.1]} 41... Rg2+ {[%clk
0:00:11.2]} 42. Kf3 {[%clk 0:00:13.8]} 42... Rf2+ {[%clk 0:00:11.1]} 43. Ke4
{[%clk 0:00:14.1]} 43... Kh6 {[%clk 0:00:08.1]} 44. Rh3+ {[%clk 0:00:13]} 44...
Kg5 {[%clk 0:00:08.4]} 45. Rg3+ {[%clk 0:00:13.3]} 45... Kh4 {[%clk 0:00:08.9]}
46. Rg6 {[%clk 0:00:13.4]} 46... Re2+ {[%clk 0:00:09.1]} 47. Kf3 {[%clk
0:00:13.2]} 47... Re3+ {[%clk 0:00:07.9]} 48. Kf4 {[%clk 0:00:13.2]} 48... Kh3
{[%clk 0:00:03.5]} 49. Rh6+ {[%clk 0:00:12.1]} 49... Kg2 {[%clk 0:00:03.6]} 50.
Rg6+ {[%clk 0:00:12.6]} 50... Kf2 {[%clk 0:00:03.7]} 51. Rxf6 {[%clk 0:00:13.1]}
51... Bd6+ {[%clk 0:00:03.8]} 52. Kg4 {[%clk 0:00:13.3]} 52... Rg3+ {[%clk
0:00:04.1]} 53. Kh4 {[%clk 0:00:13.6]} 53... Be7 {[%clk 0:00:04]} 0-1

[Event "*** Titled Tuesday Blitz"]
[Site "Chess.com"]
[Date "2020.05.19"]
[Round "2"]
[White "LizaSolovyova"]
[Black "Jumbo"]
[Result "0-1"]
[WhiteElo "2544"]
[BlackElo "2876"]
[TimeControl "180+1"]
[EndTime "12:19:15 PDT"]
[Termination "Jumbo won on time"]

1. d4 {[%clk 0:03:00.9]} 1... g6 {[%clk 0:03:00.3]} 2. c4 {[%clk 0:02:56.6]}
2... Bg7 {[%clk 0:03:00.7]} 3. Nc3 {[%clk 0:02:57.5]} 3... d6 {[%clk 0:03:01.2]}
4. e3 {[%clk 0:02:54]} 4... Nd7 {[%clk 0:02:56.4]} 5. Be2 {[%clk 0:02:52.1]}
5... e5 {[%clk 0:02:55.7]} 6. h4 {[%clk 0:02:52]} 6... h5 {[%clk 0:02:53.6]} 7.
Nf3 {[%clk 0:02:51.8]} 7... Nh6 {[%clk 0:02:48.4]} 8. d5 {[%clk 0:02:44.2]} 8...
a5 {[%clk 0:02:19.3]} 9. e4 {[%clk 0:02:40.1]} 9... Nc5 {[%clk 0:02:15.4]} 10.
Be3 {[%clk 0:02:37.5]} 10... Ng4 {[%clk 0:02:15.1]} 11. Bxc5 {[%clk 0:02:29.8]}
11... dxc5 {[%clk 0:02:16]} 12. Ng5 {[%clk 0:02:30.6]} 12... Bh6 {[%clk
0:02:09.9]} 13. Bxg4 {[%clk 0:02:02.3]} 13... Bxg4 {[%clk 0:02:08.4]} 14. f3
{[%clk 0:02:02]} 14... Bd7 {[%clk 0:02:02.2]} 15. d6 {[%clk 0:01:45.3]} 15... c6
{[%clk 0:02:02.2]} 16. f4 {[%clk 0:01:28.2]} 16... f6 {[%clk 0:01:48.1]} 17. Nf3
{[%clk 0:01:17.5]} 17... Bxf4 {[%clk 0:01:46.5]} 18. O-O {[%clk 0:01:17.6]}
18... O-O {[%clk 0:01:45.4]} 19. Qb3 {[%clk 0:01:07.2]} 19... b6 {[%clk
0:01:44.1]} 20. Na4 {[%clk 0:01:05]} 20... Rb8 {[%clk 0:01:44.2]} 21. Rad1
{[%clk 0:01:05.4]} 21... Kg7 {[%clk 0:01:43.2]} 22. Ne1 {[%clk 0:01:00.2]} 22...
Bg4 {[%clk 0:01:37.2]} 23. Nf3 {[%clk 0:00:57.4]} 23... Rf7 {[%clk 0:01:37]} 24.
Qd3 {[%clk 0:00:51.3]} 24... Rd7 {[%clk 0:01:36.2]} 25. a3 {[%clk 0:00:50.9]}
25... Qf8 {[%clk 0:01:25.3]} 26. b3 {[%clk 0:00:48.1]} 26... Qf7 {[%clk
0:01:10.2]} 27. Rf2 {[%clk 0:00:45.4]} 27... Qe6 {[%clk 0:01:10.2]} 28. Rff1
{[%clk 0:00:39.1]} 28... Kh7 {[%clk 0:01:08.9]} 29. Rf2 {[%clk 0:00:37.8]} 29...
Rbd8 {[%clk 0:01:09.4]} 30. Nxb6 {[%clk 0:00:37.1]} 30... Rxd6 {[%clk
0:01:09.6]} 31. Nd5 {[%clk 0:00:36]} 31... cxd5 {[%clk 0:01:08.8]} 32. cxd5
{[%clk 0:00:33.1]} 32... Qe7 {[%clk 0:01:08.9]} 33. Qc4 {[%clk 0:00:32.4]} 33...
Rb6 {[%clk 0:01:08.9]} 34. Rc2 {[%clk 0:00:31.1]} 34... Rdb8 {[%clk 0:01:07.4]}
35. Rd3 {[%clk 0:00:29.3]} 35... Rc8 {[%clk 0:01:03.4]} 36. Rdc3 {[%clk
0:00:26]} 36... Bd7 {[%clk 0:01:01.9]} 37. Qd3 {[%clk 0:00:24.7]} 37... Kg7
{[%clk 0:00:51.8]} 38. Qd1 {[%clk 0:00:23.6]} 38... Qd6 {[%clk 0:00:48.3]} 39.
a4 {[%clk 0:00:22.9]} 39... Rcb8 {[%clk 0:00:47.4]} 40. Qd3 {[%clk 0:00:21.8]}
40... Rb4 {[%clk 0:00:43.6]} 41. Rxc5 {[%clk 0:00:11.7]} 41... Rxb3 {[%clk
0:00:42.5]} 42. R5c3 {[%clk 0:00:11.1]} 42... Qb6+ {[%clk 0:00:36.6]} 43. Kf1
{[%clk 0:00:09.7]} 43... Rxc3 {[%clk 0:00:29]} 44. Qxc3 {[%clk 0:00:08.8]} 44...
Bxa4 {[%clk 0:00:28.5]} 45. Qc7+ {[%clk 0:00:08.8]} 45... Kh6 {[%clk 0:00:26.7]}
46. Qxb6 {[%clk 0:00:07.3]} 46... Rxb6 {[%clk 0:00:27.6]} 47. Ra2 {[%clk
0:00:08.2]} 47... Bb5+ {[%clk 0:00:26.3]} 48. Kf2 {[%clk 0:00:08.4]} 48... a4
{[%clk 0:00:26.3]} 49. g3 {[%clk 0:00:08.3]} 49... Bc1 {[%clk 0:00:25.2]} 50.
Rc2 {[%clk 0:00:08]} 50... Ba3 {[%clk 0:00:24.9]} 51. Nd2 {[%clk 0:00:06.8]}
51... Bb4 {[%clk 0:00:24.4]} 52. Nc4 {[%clk 0:00:04.2]} 52... Bxc4 {[%clk
0:00:23.2]} 53. Rxc4 {[%clk 0:00:05.1]} 53... a3 {[%clk 0:00:23.7]} 54. Rc8
{[%clk 0:00:04.4]} 54... Ra6 {[%clk 0:00:23.9]} 0-1

[Event "*** Titled Tuesday Blitz"]
[Site "Chess.com"]
[Date "2020.05.19"]
[Round "2"]
[White "AnthonyWirig"]
[Black "adricalderon8"]
[Result "1-0"]
[WhiteElo "2664"]
[BlackElo "2420"]
[TimeControl "180+1"]
[EndTime "12:19:15 PDT"]
[Termination "AnthonyWirig won by resignation"]

1. d4 {[%clk 0:03:00.9]} 1... Nf6 {[%clk 0:02:59.6]} 2. Bg5 {[%clk 0:02:58.1]}
2... Ne4 {[%clk 0:02:58.8]} 3. Bf4 {[%clk 0:02:58.2]} 3... e6 {[%clk 0:02:59.2]}
4. Nd2 {[%clk 0:02:57.3]} 4... d5 {[%clk 0:02:58.2]} 5. Nxe4 {[%clk 0:02:52.6]}
5... dxe4 {[%clk 0:02:58.3]} 6. e3 {[%clk 0:02:53]} 6... c5 {[%clk 0:02:54.2]}
7. c3 {[%clk 0:02:52.9]} 7... cxd4 {[%clk 0:02:53.5]} 8. exd4 {[%clk 0:02:52.8]}
8... Nc6 {[%clk 0:02:52.3]} 9. f3 {[%clk 0:02:36]} 9... Qd5 {[%clk 0:02:15.7]}
10. Qc2 {[%clk 0:02:15.5]} 10... e5 {[%clk 0:01:45.2]} 11. fxe4 {[%clk
0:01:57.5]} 11... Qa5 {[%clk 0:01:41.3]} 12. dxe5 {[%clk 0:01:53.6]} 12... Be6
{[%clk 0:01:22.8]} 13. Nf3 {[%clk 0:01:47.6]} 13... O-O-O {[%clk 0:01:17.5]} 14.
Be2 {[%clk 0:01:29.1]} 14... Qb6 {[%clk 0:01:14.2]} 15. h4 {[%clk 0:01:18.4]}
15... Bc5 {[%clk 0:01:11.9]} 16. g3 {[%clk 0:01:11.4]} 16... h6 {[%clk
0:01:09.8]} 17. h5 {[%clk 0:00:50.9]} 17... g5 {[%clk 0:01:05.9]} 18. hxg6
{[%clk 0:00:50.6]} 18... fxg6 {[%clk 0:01:06.4]} 19. Rd1 {[%clk 0:00:36.4]}
19... g5 {[%clk 0:01:02.3]} 20. Rxd8+ {[%clk 0:00:31.1]} 20... Rxd8 {[%clk
0:00:54.9]} 21. Rxh6 {[%clk 0:00:20.1]} 21... gxf4 {[%clk 0:00:46.4]} 22. Rxe6
{[%clk 0:00:16.8]} 22... fxg3 {[%clk 0:00:46.8]} 23. Rg6 {[%clk 0:00:16.9]}
23... Bf2+ {[%clk 0:00:45.3]} 24. Kf1 {[%clk 0:00:16.6]} 24... Kb8 {[%clk
0:00:39.7]} 25. Kg2 {[%clk 0:00:14]} 25... Rh8 {[%clk 0:00:34.9]} 26. Bc4 {[%clk
0:00:11.8]} 26... Bg1 {[%clk 0:00:32.6]} 27. Rg8+ {[%clk 0:00:09.4]} 27... Rxg8
{[%clk 0:00:31.8]} 28. Bxg8 {[%clk 0:00:10.3]} 28... Bf2 {[%clk 0:00:32.2]} 29.
Bd5 {[%clk 0:00:09.8]} 29... Qe3 {[%clk 0:00:31.7]} 30. Qd2 {[%clk 0:00:08.8]}
30... Qxd2 {[%clk 0:00:26.2]} 31. Nxd2 {[%clk 0:00:09.7]} 31... Nxe5 {[%clk
0:00:26.9]} 32. Nf1 {[%clk 0:00:06.3]} 32... Nd3 {[%clk 0:00:26]} 33. b4 {[%clk
0:00:06.8]} 33... Nf4+ {[%clk 0:00:24.4]} 34. Kf3 {[%clk 0:00:07.3]} 34... g2
{[%clk 0:00:24.9]} 35. Kxf2 {[%clk 0:00:07.3]} 35... gxf1=Q+ {[%clk 0:00:22.8]}
36. Kxf1 {[%clk 0:00:08.2]} 36... Kc7 {[%clk 0:00:22.9]} 37. Bc4 {[%clk
0:00:08.6]} 37... Kd6 {[%clk 0:00:23.2]} 38. Kf2 {[%clk 0:00:09.2]} 38... Ke5
{[%clk 0:00:23.7]} 39. Ke3 {[%clk 0:00:09.5]} 39... Ng2+ {[%clk 0:00:22.7]} 40.
Kf3 {[%clk 0:00:09.9]} 40... Ne1+ {[%clk 0:00:22.3]} 41. Ke2 {[%clk 0:00:09.9]}
41... Nc2 {[%clk 0:00:21]} 42. Bd5 {[%clk 0:00:09.3]} 42... b6 {[%clk
0:00:19.4]} 43. Kd2 {[%clk 0:00:09]} 43... Na3 {[%clk 0:00:19.7]} 44. Kd3 {[%clk
0:00:09.4]} 44... Nb5 {[%clk 0:00:19.6]} 45. a4 {[%clk 0:00:09.6]} 45... Nd6
{[%clk 0:00:20]} 46. c4 {[%clk 0:00:09.4]} 46... a5 {[%clk 0:00:20.2]} 47. c5
{[%clk 0:00:07.5]} 47... Nc8 {[%clk 0:00:18.9]} 48. bxa5 {[%clk 0:00:05.6]}
48... bxa5 {[%clk 0:00:19.1]} 49. Kc4 {[%clk 0:00:06.1]} 49... Na7 {[%clk
0:00:19]} 50. Bb7 {[%clk 0:00:04.7]} 50... Ke6 {[%clk 0:00:17.5]} 51. Kd4 {[%clk
0:00:05.2]} 51... Ke7 {[%clk 0:00:17.5]} 52. Kd5 {[%clk 0:00:05.5]} 52... Kd7
{[%clk 0:00:17.5]} 53. e5 {[%clk 0:00:05.4]} 53... Kc7 {[%clk 0:00:17]} 54. c6
{[%clk 0:00:05.8]} 54... Kd8 {[%clk 0:00:15.2]} 55. Kd6 {[%clk 0:00:03.9]} 55...
Ke8 {[%clk 0:00:13.8]} 56. c7 {[%clk 0:00:03.3]} 1-0

[Event "*** Titled Tuesday Blitz"]
[Site "Chess.com"]
[Date "2020.05.19"]
[Round "2"]
[White "Buffy7"]
[Black "Elbek_Jumanov"]
[Result "1/2-1/2"]
[WhiteElo "2643"]
[BlackElo "2413"]
[TimeControl "180+1"]
[EndTime "12:19:15 PDT"]
[Termination "Game drawn by repetition"]

1. d4 {[%clk 0:03:00.9]} 1... Nf6 {[%clk 0:02:58.8]} 2. Nf3 {[%clk 0:03:00.9]}
2... g6 {[%clk 0:02:57.6]} 3. c4 {[%clk 0:03:00.5]} 3... c5 {[%clk 0:02:57.1]}
4. d5 {[%clk 0:02:57.6]} 4... b5 {[%clk 0:02:56.4]} 5. cxb5 {[%clk 0:02:57.2]}
5... a6 {[%clk 0:02:56]} 6. bxa6 {[%clk 0:02:48.3]} 6... d6 {[%clk 0:02:55.4]}
7. Nc3 {[%clk 0:02:47.2]} 7... Bxa6 {[%clk 0:02:55.1]} 8. g3 {[%clk 0:02:45.6]}
8... Nbd7 {[%clk 0:02:54.5]} 9. e4 {[%clk 0:02:43.5]} 9... Bxf1 {[%clk
0:02:52.5]} 10. Kxf1 {[%clk 0:02:44.4]} 10... Bg7 {[%clk 0:02:48.3]} 11. Kg2
{[%clk 0:02:44.5]} 11... O-O {[%clk 0:02:48.8]} 12. Qc2 {[%clk 0:02:44.6]} 12...
Qa5 {[%clk 0:02:47.2]} 13. Bd2 {[%clk 0:02:40.5]} 13... Rfb8 {[%clk 0:02:45.4]}
14. a4 {[%clk 0:02:31.7]} 14... Qa6 {[%clk 0:02:25.6]} 15. Rhc1 {[%clk
0:02:07.5]} 15... Nb6 {[%clk 0:01:45.6]} 16. b3 {[%clk 0:01:55.3]} 16... Nfd7
{[%clk 0:01:38.5]} 17. Ra3 {[%clk 0:01:40.8]} 17... Ne5 {[%clk 0:01:36.3]} 18.
Nxe5 {[%clk 0:01:35.1]} 18... Bxe5 {[%clk 0:01:34.5]} 19. Nb5 {[%clk 0:01:34.4]}
19... Nxd5 {[%clk 0:01:12.2]} 20. exd5 {[%clk 0:01:11.7]} 20... Rxb5 {[%clk
0:01:11]} 21. Qe4 {[%clk 0:01:08.6]} 21... Rb7 {[%clk 0:01:02.5]} 22. Bc3 {[%clk
0:01:03.3]} 22... Bxc3 {[%clk 0:01:00.7]} 23. Rxc3 {[%clk 0:01:04.2]} 23... Rab8
{[%clk 0:00:59.4]} 24. h4 {[%clk 0:01:00]} 24... Qa5 {[%clk 0:00:44.5]} 25. Re3
{[%clk 0:00:53.2]} 25... Qd2 {[%clk 0:00:43.8]} 26. a5 {[%clk 0:00:45]} 26...
Qb2 {[%clk 0:00:40.7]} 27. Ra4 {[%clk 0:00:34.1]} 27... Rxb3 {[%clk 0:00:28.9]}
28. Qxe7 {[%clk 0:00:33.9]} 28... Rxe3 {[%clk 0:00:26.9]} 29. Qxe3 {[%clk
0:00:34.8]} 29... Qc2 {[%clk 0:00:23]} 30. Rf4 {[%clk 0:00:27.5]} 30... Qa2
{[%clk 0:00:18.2]} 31. Qf3 {[%clk 0:00:24.9]} 31... Rf8 {[%clk 0:00:16.9]} 32.
h5 {[%clk 0:00:25.3]} 32... Qxa5 {[%clk 0:00:16.9]} 33. h6 {[%clk 0:00:25.5]}
33... Qa1 {[%clk 0:00:16.7]} 34. Rf6 {[%clk 0:00:24.2]} 34... Qe5 {[%clk
0:00:16.6]} 35. Rf4 {[%clk 0:00:16.5]} 35... f5 {[%clk 0:00:14]} 36. Ra4 {[%clk
0:00:15.5]} 36... Rc8 {[%clk 0:00:11.3]} 37. Kh2 {[%clk 0:00:13.3]} 37... c4
{[%clk 0:00:10.7]} 38. Ra7 {[%clk 0:00:13.2]} 38... c3 {[%clk 0:00:11]} 39. Rg7+
{[%clk 0:00:12.8]} 39... Kh8 {[%clk 0:00:06]} 40. Qd3 {[%clk 0:00:12.6]} 40...
c2 {[%clk 0:00:04.6]} 41. f4 {[%clk 0:00:11.9]} 41... Qxg7 {[%clk 0:00:03.9]}
42. hxg7+ {[%clk 0:00:12.8]} 42... Kxg7 {[%clk 0:00:04]} 43. Qd4+ {[%clk
0:00:12]} 43... Kg8 {[%clk 0:00:02.9]} 44. Qf6 {[%clk 0:00:11.4]} 44... c1=Q
{[%clk 0:00:03]} 45. Qe6+ {[%clk 0:00:11.9]} 45... Kg7 {[%clk 0:00:03.6]} 46.
Qe7+ {[%clk 0:00:12.2]} 46... Kh6 {[%clk 0:00:03.9]} 47. Qg5+ {[%clk 0:00:12.3]}
47... Kg7 {[%clk 0:00:04.5]} 48. Qe7+ {[%clk 0:00:13]} 48... Kg8 {[%clk
0:00:04.7]} 49. Qe6+ {[%clk 0:00:13.1]} 49... Kf8 {[%clk 0:00:04.6]} 50. Qf6+
{[%clk 0:00:13.5]} 50... Kg8 {[%clk 0:00:04.7]} 51. Qe6+ {[%clk 0:00:13.7]}
1/2-1/2

[Event "*** Titled Tuesday Blitz"]
[Site "Chess.com"]
[Date "2020.05.19"]
[Round "2"]
[White "zacachess"]
[Black "Baronessa08"]
[Result "0-1"]
[WhiteElo "2224"]
[BlackElo "2449"]
[TimeControl "180+1"]
[EndTime "12:19:15 PDT"]
[Termination "Baronessa08 won on time"]

1. e4 {[%clk 0:02:59]} 1... e6 {[%clk 0:02:59.1]} 2. d4 {[%clk 0:02:51.5]} 2...
d5 {[%clk 0:02:58]} 3. Nd2 {[%clk 0:02:50.8]} 3... c5 {[%clk 0:02:55.8]} 4. exd5
{[%clk 0:02:46.8]} 4... exd5 {[%clk 0:02:55.4]} 5. Ngf3 {[%clk 0:02:46]} 5...
Nc6 {[%clk 0:02:54.1]} 6. Bb5 {[%clk 0:02:46]} 6... Bd7 {[%clk 0:02:51.8]} 7.
O-O {[%clk 0:02:45.5]} 7... cxd4 {[%clk 0:02:51.4]} 8. Re1+ {[%clk 0:02:36]}
8... Be7 {[%clk 0:02:51.2]} 9. Nb3 {[%clk 0:02:34.6]} 9... Nf6 {[%clk 0:02:51]}
10. Nfxd4 {[%clk 0:02:29.4]} 10... O-O {[%clk 0:02:50.4]} 11. c3 {[%clk
0:02:24.1]} 11... Ne4 {[%clk 0:02:44.5]} 12. Bd3 {[%clk 0:02:11.8]} 12... Nxd4
{[%clk 0:02:05.6]} 13. Nxd4 {[%clk 0:02:09.3]} 13... Bc6 {[%clk 0:02:03.5]} 14.
f3 {[%clk 0:01:56.3]} 14... Nf6 {[%clk 0:02:01.5]} 15. Be3 {[%clk 0:01:43.4]}
15... Re8 {[%clk 0:01:58.1]} 16. Bf2 {[%clk 0:01:43.3]} 16... Qc7 {[%clk
0:01:54.3]} 17. Bg3 {[%clk 0:01:37.6]} 17... Bd6 {[%clk 0:01:53.7]} 18. Bxd6
{[%clk 0:01:35.4]} 18... Qxd6 {[%clk 0:01:53.5]} 19. Qd2 {[%clk 0:01:21.4]}
19... g6 {[%clk 0:01:46.9]} 20. Rxe8+ {[%clk 0:01:21.2]} 20... Rxe8 {[%clk
0:01:44.7]} 21. Re1 {[%clk 0:01:22.1]} 21... Rxe1+ {[%clk 0:01:36.6]} 22. Qxe1
{[%clk 0:01:23]} 22... Qf4 {[%clk 0:01:33.5]} 23. g3 {[%clk 0:01:04.7]} 23...
Qd6 {[%clk 0:01:32.3]} 24. Kg2 {[%clk 0:00:57.9]} 24... Kg7 {[%clk 0:01:32.3]}
25. Qd2 {[%clk 0:00:51.7]} 25... Bd7 {[%clk 0:01:26]} 26. Qg5 {[%clk 0:00:50]}
26... h6 {[%clk 0:01:25.4]} 27. Qe3 {[%clk 0:00:44.2]} 27... h5 {[%clk
0:01:21.4]} 28. Bb5 {[%clk 0:00:35]} 28... Bc8 {[%clk 0:01:06.6]} 29. Qg5 {[%clk
0:00:33.8]} 29... a6 {[%clk 0:01:05.9]} 30. Bd3 {[%clk 0:00:32.8]} 30... Qe7
{[%clk 0:01:03.2]} 31. Bf5 {[%clk 0:00:31.1]} 31... Bd7 {[%clk 0:00:48.9]} 32.
Bxd7 {[%clk 0:00:29]} 32... Qxd7 {[%clk 0:00:49.8]} 33. h4 {[%clk 0:00:21.4]}
33... Ne8 {[%clk 0:00:42.6]} 34. Qe5+ {[%clk 0:00:18.4]} 34... f6 {[%clk
0:00:42.6]} 35. Qb8 {[%clk 0:00:18.3]} 35... Nd6 {[%clk 0:00:39.6]} 36. b3
{[%clk 0:00:14.3]} 36... Nf7 {[%clk 0:00:34.5]} 37. a4 {[%clk 0:00:08.2]} 37...
Ne5 {[%clk 0:00:34.2]} 38. f4 {[%clk 0:00:04.3]} 38... Ng4 {[%clk 0:00:28.9]}
39. a5 {[%clk 0:00:03.8]} 39... Ne3+ {[%clk 0:00:26.8]} 40. Kf2 {[%clk 0:00:03]}
40... Nd1+ {[%clk 0:00:26.6]} 41. Ke1 {[%clk 0:00:02.2]} 41... Nxc3 {[%clk
0:00:26.9]} 42. Qa7 {[%clk 0:00:01.8]} 42... Ne4 {[%clk 0:00:23.6]} 43. Ke2
{[%clk 0:00:01.9]} 43... Nxg3+ {[%clk 0:00:23.5]} 44. Kf3 {[%clk 0:00:02.8]}
44... Ne4 {[%clk 0:00:23]} 45. Qb6 {[%clk 0:00:02.4]} 45... Kf7 {[%clk
0:00:22.2]} 46. b4 {[%clk 0:00:01.5]} 46... Nd6 {[%clk 0:00:16.1]} 47. b5 {[%clk
0:00:02.4]} 47... axb5 {[%clk 0:00:15.1]} 48. a6 {[%clk 0:00:02.4]} 48... bxa6
{[%clk 0:00:14.3]} 49. Qxa6 {[%clk 0:00:02.7]} 49... b4 {[%clk 0:00:14.3]} 50.
Qd3 {[%clk 0:00:02.1]} 50... Ne4 {[%clk 0:00:13.5]} 51. Qb5 {[%clk 0:00:01.4]}
51... Qg4+ {[%clk 0:00:12.8]} 0-1

[Event "*** Titled Tuesday Blitz"]
[Site "Chess.com"]
[Date "2020.05.19"]
[Round "2"]
[White "AlexTriapishko"]
[Black "florianschwabeneder"]
[Result "0-1"]
[WhiteElo "2727"]
[BlackElo "2514"]
[TimeControl "180+1"]
[EndTime "12:19:16 PDT"]
[Termination "florianschwabeneder won on time"]

1. e4 {[%clk 0:02:53.6]} 1... c5 {[%clk 0:02:59.4]} 2. Nf3 {[%clk 0:02:52.7]}
2... d6 {[%clk 0:02:59.4]} 3. d4 {[%clk 0:02:53]} 3... cxd4 {[%clk 0:03:00.3]}
4. Nxd4 {[%clk 0:02:53.9]} 4... Nf6 {[%clk 0:03:00.7]} 5. Nc3 {[%clk 0:02:54.5]}
5... a6 {[%clk 0:03:00.5]} 6. h3 {[%clk 0:02:55.1]} 6... Nc6 {[%clk 0:02:58.7]}
7. g4 {[%clk 0:02:49.9]} 7... e6 {[%clk 0:02:56.4]} 8. g5 {[%clk 0:02:40.2]}
8... Nd7 {[%clk 0:02:54.7]} 9. h4 {[%clk 0:02:40.7]} 9... Qc7 {[%clk 0:02:44.7]}
10. Be3 {[%clk 0:02:37.9]} 10... b5 {[%clk 0:02:32]} 11. Bg2 {[%clk 0:02:17.7]}
11... Bb7 {[%clk 0:02:29.7]} 12. O-O {[%clk 0:02:17.8]} 12... Be7 {[%clk
0:02:18.4]} 13. f4 {[%clk 0:02:11.1]} 13... Nxd4 {[%clk 0:02:14.6]} 14. Qxd4
{[%clk 0:02:07.8]} 14... e5 {[%clk 0:02:11.6]} 15. Qd2 {[%clk 0:02:06.3]} 15...
exf4 {[%clk 0:02:06]} 16. Bd4 {[%clk 0:02:05.9]} 16... Ne5 {[%clk 0:02:01.7]}
17. Qxf4 {[%clk 0:02:02.6]} 17... O-O {[%clk 0:01:58.2]} 18. Rf2 {[%clk
0:01:24.3]} 18... f6 {[%clk 0:01:52.6]} 19. Qg3 {[%clk 0:01:05.9]} 19... fxg5
{[%clk 0:01:49.1]} 20. hxg5 {[%clk 0:01:02.2]} 20... Rxf2 {[%clk 0:01:48.8]} 21.
Bxf2 {[%clk 0:01:01.8]} 21... b4 {[%clk 0:01:36.2]} 22. Nd5 {[%clk 0:00:18.7]}
22... Bxd5 {[%clk 0:01:35.7]} 23. exd5 {[%clk 0:00:19.6]} 23... Qxc2 {[%clk
0:01:35.5]} 24. Bd4 {[%clk 0:00:20.1]} 24... Rf8 {[%clk 0:00:56.1]} 25. Re1
{[%clk 0:00:19.3]} 25... Qd2 {[%clk 0:00:30.1]} 26. Qe3 {[%clk 0:00:18.4]} 26...
Bxg5 {[%clk 0:00:26.3]} 27. Qxd2 {[%clk 0:00:17.2]} 27... Bxd2 {[%clk
0:00:27.2]} 28. Re2 {[%clk 0:00:11.5]} 28... Bf4 {[%clk 0:00:26.1]} 29. Rc2
{[%clk 0:00:07.1]} 29... Nd3 {[%clk 0:00:18.1]} 30. Bh3 {[%clk 0:00:04.5]} 30...
Be5 {[%clk 0:00:15.6]} 31. Be6+ {[%clk 0:00:04.2]} 31... Kh8 {[%clk 0:00:15.4]}
32. Be3 {[%clk 0:00:01.5]} 32... Nxb2 {[%clk 0:00:13.4]} 33. Rc6 {[%clk
0:00:02.1]} 33... a5 {[%clk 0:00:13.1]} 34. Ra6 {[%clk 0:00:01.8]} 34... Nc4
{[%clk 0:00:13.1]} 35. Bf2 {[%clk 0:00:02.2]} 35... g6 {[%clk 0:00:10.9]} 36.
Kg2 {[%clk 0:00:02.7]} 36... Rb8 {[%clk 0:00:08.5]} 37. Bg1 {[%clk 0:00:02.8]}
37... b3 {[%clk 0:00:08.5]} 38. axb3 {[%clk 0:00:02.8]} 38... Rxb3 {[%clk
0:00:09.4]} 39. Ra7 {[%clk 0:00:03.3]} 39... h5 {[%clk 0:00:06.5]} 40. Rf7
{[%clk 0:00:02]} 40... g5 {[%clk 0:00:06.1]} 41. Rf5 {[%clk 0:00:01.4]} 41...
Ne3+ {[%clk 0:00:02.8]} 0-1